[Event "13th KIIT Festival-A 2022"]
[Site "Bhubaneswar"]
[Date "2022.05.25"]
[Round "5.1"]
[White "Stupak, Kirill"]
[Black "Amonatov, Farrukh"]
[Result "1/2-1/2"]
[ECO "A39"]
[WhiteElo "2440"]
[BlackElo "2622"]
[Annotator "TA"]
[PlyCount "160"]
[EventDate "2022.05.15"]
[EventType "swiss"]
[EventCountry "IND"]
[SourceTitle "playchess.com"]
[Source "ChessBase"]
[SourceQuality "1"]
[TimeControl "5400+30"]

{[%evp 17,160,16,27,27,18,19,18,14,56,55,114,110,111,105,122,80,91,68,103,95,113,114,135,88,86,55,56,59,44,58,60,47,71,70,70,67,71,66,70,52,57,36,63,64,60,50,67,52,68,68,68,69,75,70,70,71,79,70,70,70,70,70,70,70,70,70,79,72,83,83,79,77,85,85,78,84,84,84,99,89,89,49,56,57,50,48,54,50,104,81,72,72,76,72,113,96,97,72,77,49,54,51,78,76,76,76,82,33,39,8,8,8,63,63,54,52,62,16,20,0,0,0,0,0,0,0,0,0,0,0,0,0,0,0,0,0,0,0,0,0,0,0,0,0,0]} 1. d4 {[%emt 0:00:02]} Nf6 {[%emt 0:00:07]} 2. c4 {[%emt 0:00:01]} g6 {[%emt 0:00:12]} 3. Nc3 {[%emt 0:00:03]} Bg7 {[%emt 0:00:08]} 4. g3 {[%emt 0:00:01]} c5 {[%emt 0:00:55]} 5. Nf3 {[%emt 0:00:55]} O-O {[%emt 0:00:09]} 6. Bg2 {[%emt 0:00:15]} cxd4 {[%emt 0:00:08]} 7. Nxd4 {[%emt 0:00:02]} Nc6 {[%emt 0:00:08]} 8. O-O {[%emt 0:00:03]} Qa5 {[%emt 0:00:07]} 9. Nb3 {[%emt 0:08:28] 9.e3 injects fresh life into this line.} Qb4 {[%emt 0:03:43]} 10. c5 {[%emt 0:02:20] A39: Symmetrical English vs ...g6: 4 Bg2 Bg7 5 Nf3 Nf6 6 0-0 0-0 7 d4.} d5 {[%emt 0:00:42]} 11. cxd6 {[%emt 0:04:21]} Rd8 {[%emt 0:00:37]} 12. a3 {[%emt 0:02:29] [#]} Qc4 $146 {[%emt 0:01:19]} ({Predecessor:} 12... Qxd6 13. Qxd6 exd6 14. Be3 Be6 15. Nd4 d5 16. Rac1 Ng4 17. Nxe6 fxe6 18. Bf4 Nge5 {½-½ (27) Hafner,M (2492)-Miguel de Frutos,V (1829) ICCF email 2012}) 13. Nd2 {[%emt 0:02:25]} Qc5 {[%emt 0:13:51]} (13... Qe6 $14) 14. Nde4 $16 {[%emt 0:00:56]} Nxe4 {[%emt 0:00:13]} 15. Nxe4 {[%emt 0:00:02]} Qa5 {[%emt 0:07:25]} 16. dxe7 {[%emt 0:11:36]} Nxe7 {[%emt 0:00:19]} 17. Qc2 {[%emt 0:00:16]} Be6 {[%emt 0:21:56]} 18. Qc5 {[%emt 0:04:09]} Nc6 {[%emt 0:03:59][%cal Be7c6,Bc6a5,Ba5c4][%mdl 32] [#]} 19. Bg5 $1 {[%emt 0:26:06]} Rdc8 {[%emt 0:02:01]} 20. Rab1 {[%emt 0:03:50]} ({Better is} 20. Qe3) 20... h6 {[%emt 0:06:18]} 21. Qxa5 {[%emt 0:05:40]} (21. Be3 {keeps more tension.} Rc7 22. b4 Qxa3 23. Rfd1) 21... Nxa5 {[%emt 0:00:17]} 22. Bf6 {[%emt 0:00:04]} Nc4 {[%emt 0:17:03]} 23. Rfd1 {[%emt 0:04:40]} Rab8 {[%emt 0:02:17]} 24. a4 {[%emt 0:06:35]} b5 {[%emt 0:06:16]} 25. axb5 {[%emt 0:04:54]} Rxb5 {[%emt 0:01:03]} 26. Bxg7 {[%emt 0:01:00]} Kxg7 {[%emt 0:00:01]} 27. b4 {[%emt 0:00:01]} Rcb8 {[%emt 0:04:52]} 28. Ra1 {[%emt 0:02:17]} Rxb4 {[%emt 0:00:29]} 29. Nc5 {[%emt 0:01:28]} Bc8 {[%emt 0:01:49]} 30. Nd3 {[%emt 0:01:23] White is more active.} R4b5 {[%emt 0:01:32]} 31. Rxa7 {[%emt 0:00:26]} Bg4 {[%emt 0:00:54]} 32. Bf1 {[%emt 0:02:41]} Rb1 {[%emt 0:00:47]} 33. Ra1 $1 {[%emt 0:00:13]} Rxa1 {[%emt 0:00:36]} 34. Rxa1 {[%emt 0:00:02]} Nd2 {[%emt 0:00:44]} 35. Rd1 {[%emt 0:01:37]} Nxf1 {[%emt 0:00:33]} 36. Kxf1 $14 {[%emt 0:00:02][%mdl 4096] Endgame KRB-KRN} Bf5 {[%emt 0:01:10]} 37. Nf4 {[%emt 0:00:47]} g5 {[%emt 0:01:19]} 38. Nd5 {[%emt 0:00:12]} Be6 {[%emt 0:00:48]} 39. Ne3 {[%emt 0:00:22]} Rb3 {[%emt 0:00:46]} 40. Nc2 {[%emt 0:00:24]} Rb2 {[%emt 0:00:51]} 41. Nd4 {[%emt 0:00:20]} Kf6 {[%emt 0:00:51]} 42. f3 {[%emt 0:00:43]} Bc4 {[%emt 0:00:47]} 43. Ke1 {[%emt 0:01:08]} Ke5 {[%emt 0:00:24]} 44. Nc6+ {[%emt 0:00:01]} Ke6 {[%emt 0:00:12]} 45. Rd2 {[%emt 0:00:20]} Rb1+ {[%emt 0:00:39]} 46. Kf2 {[%emt 0:00:02]} Rh1 {[%emt 0:00:07]} 47. Kg2 {[%emt 0:00:04]} Re1 {[%emt 0:00:05]} 48. Nd4+ {[%emt 0:00:59]} Ke5 {[%emt 0:00:09]} 49. f4+ {[%emt 0:02:59]} Kf6 $1 {[%emt 0:02:34]} 50. Rb2 {[%emt 0:00:03]} Kg6 {[%emt 0:00:42]} 51. Rb6+ {[%emt 0:02:52]} f6 {[%emt 0:00:01]} 52. Rd6 {[%emt 0:02:29]} Rd1 {[%emt 0:00:39]} (52... g4 $14) 53. Kf2 {[%emt 0:01:08]} Rh1 {[%emt 0:00:40]} 54. Nf3 {[%emt 0:00:32] [#] Hoping for Ne5+.} Kf7 {[%emt 0:00:20]} 55. Rd7+ {[%emt 0:00:36]} Ke6 {[%emt 0:00:50]} 56. Rd4 {[%emt 0:00:31]} Ba6 {[%emt 0:00:34]} 57. Rb4 {[%emt 0:00:27] Prevents Bb7.} Kf7 {[%emt 0:00:14]} 58. Kg2 {[%emt 0:00:36]} Ra1 {[%emt 0:00:16]} 59. Nd4 {[%emt 0:00:05]} Rd1 {[%emt 0:00:52]} 60. h4 {[%emt 0:00:44]} gxh4 {[%emt 0:00:37]} 61. gxh4 {[%emt 0:00:01]} Kg6 {[%emt 0:00:21][%cal Oa6b7]} 62. Kf2 {[%emt 0:00:50]} (62. f5+ $16 Kf7 63. Kf3) 62... Bc8 {[%emt 0:00:26]} 63. Ke3 {[%emt 0:00:48][%cal Of4f5]} Rh1 {[%emt 0:00:22]} 64. Rb8 {[%emt 0:00:24]} Bg4 {[%emt 0:00:28]} (64... Bd7 $11) 65. Rg8+ $1 {[%emt 0:00:36]} Kh5 {[%emt 0:00:01]} 66. f5 {[%emt 0:00:30] aiming for Rf8.} Rh3+ {[%emt 0:01:22]} 67. Kf4 {[%emt 0:00:27]} (67. Ke4 $14) 67... Rxh4 $11 {[%emt 0:00:09] The position is equal.} 68. Nf3 {[%emt 0:00:18]} Bxf3+ {[%emt 0:00:09]} 69. Kxf3 {[%emt 0:00:01] KR-KR} Rh3+ {[%emt 0:00:19]} 70. Ke4 {[%emt 0:00:19]} (70. Kf4 $5 {[%cal Rg8g6]}) 70... Rh4+ {[%emt 0:01:20]} 71. Kd5 {[%emt 0:01:02]} Rg4 {[%emt 0:00:28]} 72. Rf8 {[%emt 0:00:44]} Kg5 {[%emt 0:00:08]} 73. e4 {[%emt 0:00:01] White wants to mate with Rg8+.} h5 {[%emt 0:00:10]} 74. e5 {[%emt 0:01:01]} fxe5 {[%emt 0:00:17]} 75. Kxe5 {[%emt 0:00:36]} Ra4 {[%emt 0:00:15]} (75... h4 76. Rg8+ Kh5 77. Rh8+ Kg5 78. f6) 76. Rg8+ {[%emt 0:00:21]} Kh6 {[%emt 0:00:05]} 77. f6 {[%emt 0:00:39] Threatening mate with f7.} Ra5+ {[%emt 0:00:06]} 78. Ke4 {[%emt 0:00:30]} Ra4+ {[%emt 0:00:07]} 79. Ke5 {[%emt 0:00:05] f7 would kill now.} Ra5+ {[%emt 0:00:03]} 80. Ke4 {[%emt 0:00:03] White threatens f7 and mate.} Ra4+ {[%emt 0:03:57] Weighted Error Value: White=0.07 (flawless) /Black=0.09 (flawless)} 1/2-1/2

[Event "13th KIIT Festival-A 2022"]
[Site "Bhubaneswar"]
[Date "2022.05.25"]
[Round "5.2"]
[White "Azaladze, Shota"]
[Black "Aleksandrov, Aleksej"]
[Result "0-1"]
[ECO "C00"]
[WhiteElo "2420"]
[BlackElo "2492"]
[Annotator "TA"]
[PlyCount "76"]
[EventDate "2022.05.15"]
[EventType "swiss"]
[EventCountry "IND"]
[SourceTitle "playchess.com"]
[Source "ChessBase"]
[SourceQuality "1"]
[TimeControl "5400+30"]

{[%evp 21,76,-50,-33,-47,-39,-49,-27,-27,-24,-34,-27,-55,-72,-86,-88,-101,-109,-108,-107,-207,-197,-184,-191,-147,-125,-257,-266,-266,-247,-339,-335,-414,-419,-989,-1012,-990,-940,-1024,-894,-1074,-1060,-1064,-1037,-1009,-974,-1237,-1237,-1480,-1474,-29982,-29983,-29983,-29984,-29984,-29985,-29996,-29997]} 1. Nf3 {[%emt 0:00:05]} Nf6 {[%emt 0:00:07]} 2. g3 {[%emt 0:00:03]} d5 {[%emt 0:00:05]} 3. Bg2 {[%emt 0:00:04]} e6 {[%emt 0:00:03]} 4. O-O {[%emt 0:00:38]} Be7 {[%emt 0:00:03]} 5. d3 {[%emt 0:01:31]} O-O {[%emt 0:01:45]} 6. Nbd2 {[%emt 0:00:05]} c5 {[%emt 0:00:03]} 7. e4 {[%emt 0:00:06]} Nc6 {[%emt 0:00:02]} 8. Re1 {[%emt 0:00:08]} Qc7 {[%emt 0:00:06]} 9. e5 {[%emt 0:00:28]} Nd7 {[%emt 0:00:04]} 10. Qe2 {[%emt 0:00:03]} b5 {[%emt 0:00:05]} 11. Nf1 {[%emt 0:00:09]} Bb7 {[%emt 0:00:32]} 12. Bf4 {[%emt 0:00:22] C00: French: Unusual White 2nd moves.} Rfc8 {[%emt 0:00:24]} 13. h4 {[%emt 0:07:21]} a5 {[%emt 0:04:09]} 14. Ne3 {[%emt 0:02:41][%cal Oe3d5] Black has an edge. 14.h5 is setting a new trend.} Qd8 {[%emt 0:03:29] [#]} ({Don't play} 14... Ncxe5 15. Nxe5 (15. Nxd5 Bxd5 16. Nxe5 Bxg2 $11) 15... Nxe5 16. Bxe5 Qxe5 17. Nxd5 $1 $16) 15. a4 $146 {[%emt 0:05:06]} ({Predecessor:} 15. Ng4 Bf8 16. h5 h6 17. Ngh2 b4 18. g4 a4 19. g5 Nd4 20. Nxd4 cxd4 21. Qg4 hxg5 22. Bxg5 {0-1 (63) Vandendriessche,J (2168)-Decrop,B (2181) Wachtebeke 2019}) 15... bxa4 {[%emt 0:00:27]} 16. Ng4 {[%emt 0:02:29]} Nb6 {[%emt 0:10:41]} 17. h5 {[%emt 0:07:37]} h6 $1 {[%emt 0:00:15]} 18. Qd2 {[%emt 0:00:25][%cal Of4h6]} Nd4 {[%emt 0:08:23]} 19. Nxd4 {[%emt 0:06:11]} cxd4 {[%emt 0:00:01]} 20. Bxh6 {[%emt 0:00:15]} gxh6 $19 {[%emt 0:01:05]} 21. Nxh6+ {[%emt 0:00:24] [#]} Kg7 $1 {[%emt 0:05:51] ...Bg5 is the strong threat.} (21... Kf8 22. Qf4 Qe8 23. Qg4 $18) 22. Qf4 {[%emt 0:00:48]} Qf8 {[%emt 0:00:13]} 23. Ng4 {[%emt 0:06:06] White does not recover from this.} (23. Re2 $17 {was necessary.}) 23... Rxc2 {[%emt 0:05:11]} 24. Qxd4 {[%emt 0:01:47]} Bd8 {[%emt 0:07:35] Hoping for ...Qb4.} 25. Qf4 {[%emt 0:05:46]} Rxb2 {[%emt 0:00:50]} 26. Re3 {[%emt 0:03:23]} a3 {[%emt 0:06:31]} 27. Rxa3 {[%emt 0:07:53]} (27. Rf3 $142) 27... Qxa3 {[%emt 0:03:36]} 28. Rf3 {[%emt 0:14:43]} Qf8 {[%emt 0:01:05]} 29. Qh6+ {[%emt 0:00:02]} Kg8 {[%emt 0:00:06][%cal Bg7g8,Bg8f8,Bf8e8][%mdl 32]} 30. Qc1 {[%emt 0:00:09]} Qb4 {[%emt 0:09:39] Strongly threatening ...Rb1.} 31. Nh6+ {[%emt 0:00:12] [#]} Kf8 $1 {[%emt 0:00:03] aiming for ...Rb1.} (31... Kh8 {leads to mate.} 32. Nxf7+ Kg8 33. Qh6) 32. Kh2 {[%emt 0:00:28]} Rc8 {[%emt 0:04:21][%cal Ba8c8,Bc8c2,Bc2f2,Bf2g2][%mdl 32]} 33. Rxf7+ {[%emt 0:02:35]} Ke8 {[%emt 0:03:43]} 34. Qd1 {[%emt 0:00:27] [#]} Rcc2 $1 {[%emt 0:09:23][%cal Oc2f2]} 35. Rxb7 {[%emt 0:01:52]} (35. Kh3 Rxf2) 35... Rxf2 {[%emt 0:00:09] Black mates.} 36. Ng4 {[%emt 0:00:07]} Rxg2+ {[%emt 0:00:16]} 37. Kh3 {[%emt 0:00:01]} Qf8 {[%emt 0:05:26]} 38. h6 {[%emt 0:08:34]} Qf5 {[%emt 0:01:04] Weighted Error Value: White=0.62/Black=0.02 (flawless)} 0-1

[Event "13th KIIT Festival-A 2022"]
[Site "Bhubaneswar"]
[Date "2022.05.25"]
[Round "5.3"]
[White "Nitin, S.."]
[Black "Mirzoev, Azer"]
[Result "1/2-1/2"]
[ECO "C49"]
[WhiteElo "2399"]
[BlackElo "2476"]
[Annotator "TA"]
[PlyCount "61"]
[EventDate "2022.05.15"]
[EventType "swiss"]
[EventCountry "IND"]
[SourceTitle "playchess.com"]
[Source "ChessBase"]
[SourceQuality "1"]
[TimeControl "5400+30"]

{[%evp 20,61,11,0,17,4,12,22,33,33,56,32,39,31,45,31,42,35,31,29,43,7,29,33,35,37,41,37,34,31,56,27,32,19,12,17,33,55,74,67,59,22,42,34]} 1. e4 {[%emt 0:00:33] Atalik,S} e5 {[%emt 0:00:12]} 2. Nf3 {[%emt 0:00:09]} Nf6 {[%emt 0:00:06]} 3. Nc3 {[%emt 0:00:14]} Nc6 {[%emt 0:01:02]} 4. Bb5 {[%emt 0:00:09]} Bb4 {[%emt 0:01:13]} 5. O-O {[%emt 0:01:17]} O-O {[%emt 0:00:10]} 6. d3 {[%emt 0:00:06]} d6 {[%emt 0:00:55]} 7. Ne2 {[%emt 0:00:44]} Ne7 {[%emt 0:00:24]} 8. c3 {[%emt 0:00:12]} Ba5 {[%emt 0:00:09]} 9. Ng3 {[%emt 0:00:21]} Ng6 {[%emt 0:00:22]} 10. d4 {[%emt 0:00:12]} c6 {[%emt 0:00:28]} 11. Ba4 {[%emt 0:00:32]} h6 {[%emt 0:00:32] C49: Four Knights: 4 Bb5 Bb4.} 12. h3 {[%emt 0:00:56]} Re8 {[%emt 0:00:42]} 13. Bc2 {[%emt 0:00:25]} Qe7 {[%emt 0:08:44] The position is equal.} 14. Re1 {[%emt 0:02:57]} Qf8 {[%emt 0:00:37] [#]} 15. Bd2 $146 {[%emt 0:00:59]} ({Predecessor:} 15. a4 c5 16. d5 Nf4 17. Nd2 g6 18. Nc4 Bd8 19. a5 Bd7 20. Qf3 N4h5 21. Ba4 Nxg3 22. Bxd7 Nxd7 23. Qxg3 {½-½ (72) Campora,D (2549)-Atalik,S (2541) Mallorca 2004 CBM 104 [Atalik,S]}) 15... Be6 {[%emt 0:00:59]} 16. a4 {[%emt 0:00:40][%cal Ba2a4,Ba4a5][%mdl 32]} Rad8 {[%emt 0:01:28]} 17. Qc1 {[%emt 0:04:07]} Bc7 {[%emt 0:02:25]} 18. a5 {[%emt 0:04:00]} a6 {[%emt 0:01:39]} 19. Be3 {[%emt 0:01:57]} Kh8 {[%emt 0:11:44]} 20. Kh1 {[%emt 0:13:16]} d5 {[%emt 0:19:58]} 21. dxe5 {[%emt 0:09:42]} Nxe4 {[%emt 0:00:48]} 22. Nxe4 {[%emt 0:02:13]} dxe4 {[%emt 0:00:19]} 23. Bxe4 {[%emt 0:00:09]} Nxe5 {[%emt 0:01:50]} 24. Bd4 {[%emt 0:13:26]} f6 {[%emt 0:00:26]} 25. Nh4 {[%emt 0:00:29] [#] aiming for Bxe5.} (25. Bxe5 $5 fxe5 26. Qe3 $11) 25... Bf7 {[%emt 0:07:36]} 26. Qc2 {[%emt 0:04:47]} Qd6 {[%emt 0:04:58][%cal Oe5d3] Hoping for ...Nd3!} 27. Nf5 {[%emt 0:01:17]} Qf8 {[%emt 0:00:28]} 28. b4 {[%emt 0:08:10] Strongly threatening Bc5.} Qg8 {[%emt 0:12:44]} 29. Nh4 {[%emt 0:01:16] White is more active.} Nc4 {[%emt 0:08:22]} 30. Bg6 {[%emt 0:05:29]} Rxe1+ {[%emt 0:00:20]} 31. Rxe1 {[%emt 0:00:02] Weighted Error Value: White=0.08 (flawless) /Black=0.08 (flawless)} 1/2-1/2

[Event "13th KIIT Festival-A 2022"]
[Site "Bhubaneswar"]
[Date "2022.05.25"]
[Round "5.4"]
[White "Savchenko, Boris"]
[Black "Abdyjapar, Asyl"]
[Result "1/2-1/2"]
[ECO "B13"]
[WhiteElo "2524"]
[BlackElo "2346"]
[Annotator "TA"]
[PlyCount "58"]
[EventDate "2022.05.15"]
[EventType "swiss"]
[EventCountry "IND"]
[SourceTitle "playchess.com"]
[Source "ChessBase"]
[SourceQuality "1"]
[TimeControl "5400+30"]

{[%evp 11,58,13,8,10,21,19,18,21,26,17,29,20,1,0,0,3,2,0,0,0,0,0,0,0,0,-46,-52,-36,-23,-22,-22,-22,-24,-15,-19,-19,-16,-22,-12,-28,-21,-19,-23,-14,0,0,0,-7,0]} 1. e4 {[%emt 0:00:05]} c6 {[%emt 0:00:17]} 2. d4 {[%emt 0:01:57]} d5 {[%emt 0:00:05]} 3. exd5 {[%emt 0:00:48]} cxd5 {[%emt 0:00:05]} 4. Bd3 {[%emt 0:00:05]} Nc6 {[%emt 0:00:17]} 5. c3 {[%emt 0:00:07]} Qc7 {[%emt 0:00:49]} 6. Ne2 {[%emt 0:00:17]} Bg4 {[%emt 0:00:06]} 7. O-O {[%emt 0:00:05] B13: Caro-Kann: Exchange Variation and Panov-Botvinnik Attack.} e6 {[%emt 0:00:36]} 8. Qe1 {[%emt 0:00:12]} Nf6 $1 {[%emt 0:00:22][%mdl 4] is more profitable than 8...Bxe2 at the moment.} 9. f3 {[%emt 0:01:44] [#] Strongly threatening Bf4.} Bh5 $1 {[%emt 0:02:10]} 10. Qh4 {[%emt 0:00:17] aiming for Nf4.} Bg6 {[%emt 0:00:15]} 11. Bxg6 {[%emt 0:00:09]} fxg6 {[%emt 0:00:04] [#]} 12. Bg5 $146 {[%emt 0:02:34]} ({Predecessor:} 12. Nf4 Kf7 13. Nh3 Re8 14. Bf4 Qb6 15. Nd2 h6 16. Nb3 e5 17. Be3 exd4 18. Bxd4 Nxd4 19. Qxd4 Qxd4+ 20. Nxd4 {½-½ (67) Goryachkina,A (2610)-Lenderman,A (2600) Chess.com INT 2022}) 12... Kf7 {[%emt 0:02:27][%cal Be8f7,Bf7g8,Bg8h7][%mdl 32]} 13. Nd2 {[%emt 0:00:43]} Bd6 {[%emt 0:04:06] [#]} 14. Ne4 $1 {[%emt 0:12:54]} dxe4 {[%emt 0:08:25]} 15. fxe4 {[%emt 0:00:07][%cal Rg5f6]} Kg8 {[%emt 0:16:20]} 16. e5 {[%emt 0:03:00]} (16. Bxf6 gxf6 17. Qxf6 Qe7 $17) 16... Nxe5 {[%emt 0:00:51]} 17. dxe5 {[%emt 0:00:26]} Bxe5 {[%emt 0:00:09]} 18. Qh3 {[%emt 0:02:17]} (18. Nf4 $11 {feels stronger.}) 18... Re8 $15 {[%emt 0:02:39]} 19. Rae1 {[%emt 0:03:01]} h6 {[%emt 0:06:01]} 20. Bf4 {[%emt 0:01:23]} Kh7 {[%emt 0:04:25] next ...Bxf4 is good for Black.} 21. Bxe5 {[%emt 0:00:31]} Qxe5 {[%emt 0:00:05]} 22. Nd4 {[%emt 0:00:16]} Qc5 {[%emt 0:00:21]} 23. Rxe6 {[%emt 0:04:43]} Rxe6 {[%emt 0:00:20]} 24. Qxe6 {[%emt 0:00:05] Black must now prevent Rxf6.} Re8 {[%emt 0:00:11]} 25. Qb3 {[%emt 0:00:23][%cal Of1f6]} Qe5 {[%emt 0:06:54] Hoping for ...Ng4.} 26. h3 {[%emt 0:14:58] Inhibits Ng4.} Qe3+ {[%emt 0:00:15]} 27. Kh2 $1 {[%emt 0:00:53]} ({Wrong is} 27. Kh1 $2 Ne4 28. Kh2 Nd2 $19) 27... Qe5+ {[%emt 0:01:13] The position is equal.} 28. Kg1 $1 {[%emt 0:03:39]} Qe3+ {[%emt 0:00:18]} 29. Kh2 $1 {[%emt 0:03:25]} ({Not} 29. Kh1 $2 Ne4 30. Kh2 Nd2 $19) 29... Qe5+ {[%emt 0:01:11] Weighted Error Value: White=0.02 (flawless) /Black=0.02 (flawless)} 1/2-1/2

[Event "13th KIIT Festival-A 2022"]
[Site "Bhubaneswar"]
[Date "2022.05.25"]
[Round "5.5"]
[White "Rohith Krishna S"]
[Black "Rahman, Ziaur"]
[Result "1/2-1/2"]
[ECO "D02"]
[WhiteElo "2337"]
[BlackElo "2431"]
[Annotator "TA"]
[PlyCount "91"]
[EventDate "2022.05.15"]
[EventType "swiss"]
[EventCountry "IND"]
[SourceTitle "playchess.com"]
[Source "ChessBase"]
[SourceQuality "1"]
[TimeControl "5400+30"]

{[%evp 9,91,33,33,24,30,4,20,0,28,11,21,6,13,0,6,5,19,0,0,-19,-19,-14,-20,-56,-55,-50,-50,-85,-11,-62,-60,-99,-91,-97,-105,-87,-96,-89,-89,-89,-93,-89,-86,-94,-93,-87,-89,-99,-92,-84,-77,-82,-78,-134,-120,-139,-141,-126,0,0,0,-274,-17,-27,0,0,0,0,0,0,0,0,0,0,0,0,0,0,0,0,0,0,0,0]} 1. Nf3 {[%emt 0:00:42]} d5 {[%emt 0:00:42]} 2. g3 {[%emt 0:00:07]} Nd7 {[%emt 0:01:44]} 3. d4 {[%emt 0:02:54]} Nb6 {[%emt 0:00:35]} 4. Bg2 {[%emt 0:02:58]} Bf5 {[%emt 0:01:09]} 5. O-O {[%emt 0:04:06]} Nf6 {[%emt 0:01:35]} 6. Ne5 {[%emt 0:06:24] D02: 1 d4 d5 2 Nf3 sidelines, including 2...Nf6 3 g3 and 2...Nf6 3 Bf4.} c6 {[%emt 0:04:43]} 7. b3 {[%emt 0:04:25]} e6 {[%emt 0:02:41]} 8. Bb2 {[%emt 0:01:41]} Be7 {[%emt 0:03:44]} 9. Nd2 {[%emt 0:10:01]} O-O {[%emt 0:02:41]} 10. c4 {[%emt 0:00:27]} h6 {[%emt 0:01:43]} 11. Re1 {[%emt 0:07:43]} a5 {[%emt 0:03:50]} 12. a3 {[%emt 0:02:48]} Nbd7 {[%emt 0:03:16] [#]} 13. Nxd7 $146 {[%emt 0:09:17]} ({Predecessor:} 13. e4 dxe4 14. Nxe4 Re8 15. Nxf6+ Bxf6 16. Qe2 Bxe5 17. dxe5 Nc5 18. Rad1 Qg5 19. b4 axb4 20. axb4 {0-1 (38) Nagy,G (2495)-Le,T (2514) Chess.com INT 2020}) 13... Qxd7 {[%emt 0:01:15]} 14. f3 {[%emt 0:00:13]} Bh7 {[%emt 0:04:37]} 15. e4 {[%emt 0:00:37]} dxe4 {[%emt 0:00:59]} 16. fxe4 {[%emt 0:09:28]} e5 $1 {[%emt 0:02:30][%cal Be6e5,Be5d4][%mdl 32]} 17. Nf3 $1 {[%emt 0:00:33]} exd4 {[%emt 0:00:11]} 18. e5 {[%emt 0:04:23]} Ne8 {[%emt 0:01:31]} (18... Ne4 $17 {And now ...d3 would win.} 19. Nxd4 Nc5) 19. e6 {[%emt 0:03:46]} (19. Nxd4 $11 Bc5 20. Qd2) 19... fxe6 $15 {[%emt 0:01:04] White must now prevent ...c5.} 20. Bxd4 {[%emt 0:00:07]} Rd8 {[%emt 0:01:35] Strongly threatening ...Qc8.} 21. Bb6 {[%emt 0:03:42][%csl LRa5,LRd8]} Qxd1 {[%emt 0:03:01]} 22. Raxd1 {[%emt 0:00:26]} Rxd1 {[%emt 0:00:16]} 23. Rxd1 {[%emt 0:00:04]} Nf6 {[%emt 0:04:11] Against Rd7} 24. Bh3 {[%emt 0:15:46]} Bf5 {[%emt 0:03:12]} 25. Bxf5 {[%emt 0:00:15]} exf5 {[%emt 0:00:05]} 26. a4 {[%emt 0:00:03]} Bb4 $1 {[%emt 0:00:35]} 27. Kg2 {[%emt 0:02:01]} Re8 {[%emt 0:01:18]} 28. Nh4 {[%emt 0:01:25]} Re2+ {[%emt 0:02:22]} 29. Kf3 {[%emt 0:00:53]} Rb2 {[%emt 0:01:23]} 30. Rd3 {[%emt 0:00:37]} Ng4 {[%emt 0:02:48]} 31. Rd8+ {[%emt 0:00:19]} ({Better is} 31. Kf4) 31... Kh7 $17 {[%emt 0:00:08]} 32. Nxf5 {[%emt 0:00:05]} Nxh2+ {[%emt 0:01:45]} 33. Ke4 {[%emt 0:00:06]} Bc3 {[%emt 0:05:15]} (33... Re2+ $17 34. Be3 Nf1) 34. Rd3 $1 $11 {[%emt 0:01:45]} Re2+ {[%emt 0:02:15]} (34... Rxb3 $2 35. Bxa5 $1 {[%mdl 512]} Ng4 36. Rxc3 $18) 35. Ne3 $2 {[%emt 0:00:05][%mdl 8192] [#]} (35. Be3 $11 Bb4 36. Rd7) 35... Bb4 $2 {[%emt 0:01:25]} ({Black should play} 35... Bd2 $1 $19 {Hoping for ...h5.} 36. Ba7 h5) 36. Rd7 {[%emt 0:01:34]} Ng4 {[%emt 0:00:51]} 37. Kf4 {[%emt 0:00:30] The position is equal.} Nf6 {[%emt 0:11:48]} 38. Rxb7 {[%emt 0:00:16]} Rf2+ {[%emt 0:00:04]} 39. Ke5 {[%emt 0:00:04]} Rd2 {[%emt 0:03:32]} 40. Nf5 {[%emt 0:01:57]} Nd7+ {[%emt 0:04:07]} 41. Ke4 {[%emt 0:00:52]} Nxb6 {[%emt 0:01:16]} 42. Rxb6 {[%emt 0:00:05]} Re2+ {[%emt 0:00:35]} 43. Kf4 {[%emt 0:00:30]} Rf2+ {[%emt 0:02:14]} 44. Ke4 {[%emt 0:00:05]} Re2+ {[%emt 0:00:07]} 45. Kf4 {[%emt 0:00:04]} Rf2+ {[%emt 0:00:41]} 46. Ke4 {[%emt 0:00:04] Weighted Error Value: White=0.23 (precise) /Black=0.21 (precise)} 1/2-1/2